[Event "5th Sharjah Masters 2022"]
[Site "Sharjah"]
[Date "2022.05.21"]
[Round "1.5"]
[White "Sarana, Alexey"]
[Black "Azarov, Sergei"]
[Result "1-0"]
[ECO "E32"]
[WhiteElo "2675"]
[BlackElo "2588"]
[Annotator "TA"]
[PlyCount "117"]
[EventDate "2022.05.21"]
[EventType "swiss"]
[EventCountry "UAE"]
[SourceTitle "playchess.com"]
[Source "ChessBase"]
[SourceQuality "1"]
[TimeControl "5400+30"]

{[%evp 15,117,13,27,14,37,29,40,22,3,23,19,15,10,0,37,15,13,19,17,17,18,16,16,4,12,12,20,0,0,0,20,5,22,0,0,0,0,0,22,0,0,0,29,27,39,26,75,50,45,45,27,24,50,52,56,62,53,40,51,41,43,20,20,0,58,0,33,10,18,0,0,0,0,0,0,0,0,0,0,-31,0,-8,0,0,0,0,0,0,0,0,839,831,29973,29969,29978,29979,29979,29980,29979,29979,29979,29978,29968,29961]} 1. d4 {[%emt 0:00:03]} Nf6 {[%emt 0:00:13]} 2. c4 {[%emt 0:00:06]} e6 {[%emt 0:00:13]} 3. Nc3 {[%emt 0:00:06]} Bb4 {[%emt 0:00:14]} 4. Qc2 {[%emt 0:00:05]} O-O {[%emt 0:01:10]} 5. Nf3 {[%emt 0:00:25]} d6 {[%emt 0:05:06]} 6. Bd2 {[%emt 0:05:01]} Nbd7 {[%emt 0:06:25]} 7. a3 {[%emt 0:01:27]} Bxc3 {[%emt 0:00:08]} 8. Bxc3 {[%emt 0:00:05]} Qe7 {[%emt 0:06:54]} 9. e3 {[%emt 0:13:06] E32: Nimzo-Indian: Classical (4 Qc2): 4...0-0.} e5 {[%emt 0:04:10]} 10. Be2 {[%emt 0:00:16]} Re8 {[%emt 0:03:30]} 11. d5 {[%emt 0:04:32] White is slightly better.} b5 {[%emt 0:09:41] [#]} 12. cxb5 $146 {[%emt 0:04:31]} ({Predecessor:} 12. b3 Nb6 13. O-O bxc4 14. bxc4 Bg4 15. Ba5 c6 16. dxc6 Rec8 17. Rfb1 Rxc6 18. Bxb6 axb6 {0-1 (52) Pietrzak,T (1617)-Karykowska,A (1869) Kudowa Zdroj 2018}) 12... Nxd5 {[%emt 0:00:49]} 13. O-O {[%emt 0:00:26]} N7f6 {[%emt 0:07:02]} 14. Rac1 {[%emt 0:08:08]} a6 {[%emt 0:07:54]} 15. Rfd1 {[%emt 0:06:52]} (15. Bd2 $5 {[%cal Re3e4]}) 15... axb5 {[%emt 0:03:35]} 16. Bxb5 {[%emt 0:00:24]} Bd7 {[%emt 0:00:54] Against Bc6} 17. Bxd7 {[%emt 0:01:07]} Qxd7 {[%emt 0:00:09]} 18. Be1 {[%emt 0:00:04]} Qb5 {[%emt 0:41:23]} 19. Nd2 {[%emt 0:02:14]} Reb8 {[%emt 0:00:00]} 20. Nc4 {[%emt 0:01:14]} Qb3 {[%emt 0:00:00]} 21. Qe2 {[%emt 0:03:07]} h6 {[%emt 0:00:00]} 22. h3 {[%emt 0:04:55]} e4 {[%emt 0:00:00]} 23. Rc2 {[%emt 0:03:02]} Rb5 {[%emt 0:00:00]} 24. Rd4 {[%emt 0:02:40]} (24. Bc3 $5) 24... Rc5 {[%emt 0:00:00]} 25. Rc1 {[%emt 0:03:56][%cal Bc2c1,Bc1d1,Bd1b1][%mdl 32]} Rb8 {[%emt 0:00:00]} 26. Kf1 {[%emt 0:09:05]} Kh7 {[%emt 0:00:07]} 27. Rdd1 {[%emt 0:09:41]} Rbb5 {[%emt 0:00:55]} 28. Rd4 {[%emt 0:04:51]} Rb8 {[%emt 0:02:26]} 29. Qd1 {[%emt 0:05:11]} Qxd1 {[%emt 0:01:26]} 30. Rcxd1 {[%emt 0:00:02] Threatens to win with b4.} Rb3 {[%emt 0:00:14]} (30... Ra8 $11) 31. Rb1 {[%emt 0:00:40]} Rcb5 $1 {[%emt 0:00:40]} 32. a4 {[%emt 0:02:05]} Rb8 {[%emt 0:00:11]} 33. a5 {[%emt 0:01:55]} Ne7 {[%emt 0:00:32]} 34. Nd2 {[%emt 0:00:58][%csl LRb3,LRe4]} Rxb2 {[%emt 0:00:34]} 35. Rxb2 {[%emt 0:00:03]} Rxb2 {[%emt 0:00:04]} 36. Nxe4 {[%emt 0:00:03]} Ra2 {[%emt 0:01:14]} 37. Nxf6+ {[%emt 0:01:01]} gxf6 $14 {[%emt 0:00:01][%mdl 4096] Endgame KRB-KRN} 38. Re4 {[%emt 0:00:14]} Nd5 {[%emt 0:00:34]} 39. Rd4 {[%emt 0:00:04]} Ne7 {[%emt 0:00:12]} 40. Re4 {[%emt 0:01:48]} Nd5 {[%emt 0:00:06]} 41. Re8 {[%emt 0:00:02]} f5 {[%emt 0:00:45]} 42. g4 {[%emt 0:00:19]} fxg4 {[%emt 0:00:43]} 43. hxg4 {[%emt 0:00:02]} Kg6 {[%emt 0:01:08]} 44. Kg2 {[%emt 0:04:52]} Nf6 {[%emt 0:00:25][%csl LRe8,LRg4]} 45. Rc8 {[%emt 0:00:30]} Nxg4 {[%emt 0:00:28]} 46. Kg3 {[%emt 0:00:15]} ({Much weaker is} 46. Rxc7 Nxe3+ 47. Kf3 Nf5 $15) 46... Nf6 {[%emt 0:00:36] White must now prevent ...Ra1.} 47. Kf3 {[%emt 0:01:45]} Ra1 {[%emt 0:00:37]} 48. Bc3 {[%emt 0:00:01]} Ra3 {[%emt 0:00:08]} 49. Rxc7 {[%emt 0:01:06]} Nd5 {[%emt 0:00:11][%csl LRc3,LRc7]} 50. Bb2 {[%emt 0:00:03]} Rxe3+ {[%emt 0:00:46]} 51. fxe3 {[%emt 0:00:01] White threatens Rb7 and mate.} Nxc7 $11 {[%emt 0:00:05] KB-KN} 52. Ba3 {[%emt 0:00:30]} Na6 $2 {[%emt 0:01:03][%mdl 8192] [#]} (52... d5 $11) 53. Ke4 $1 $18 {[%emt 0:00:43]} Kf6 {[%emt 0:00:34] [#]} 54. Kd5 $1 {[%emt 0:00:01] White mates.} h5 {[%emt 0:00:20]} 55. Bxd6 {[%emt 0:01:11]} h4 {[%emt 0:00:12]} 56. Kc6 {[%emt 0:00:49]} Ke6 {[%emt 0:00:36]} 57. Bh2 {[%emt 0:00:07]} Nb4+ {[%emt 0:01:02]} 58. Kb5 {[%emt 0:00:02]} Nd5 {[%emt 0:00:32]} 59. a6 {[%emt 0:00:07] Weighted Error Value: White=0.08 (flawless) /Black=0.20 (precise)} 1-0

[Event "5th Sharjah Masters 2022"]
[Site "Sharjah"]
[Date "2022.05.21"]
[Round "1.6"]
[White "Kuybokarov, Temur"]
[Black "Deac, Bogdan-Daniel"]
[Result "0-1"]
[ECO "B30"]
[WhiteElo "2582"]
[BlackElo "2671"]
[Annotator "TA"]
[PlyCount "34"]
[EventDate "2022.05.21"]
[EventType "swiss"]
[EventCountry "UAE"]
[SourceTitle "playchess.com"]
[Source "ChessBase"]
[SourceQuality "1"]
[TimeControl "5400+30"]

{[%evp 16,34,27,30,35,8,14,14,24,12,16,27,27,0,6,0,10,9,22,0,0]} 1. e4 {[%emt 0:00:05] Szabo,Kr} c5 {[%emt 0:00:02]} 2. Nf3 {[%emt 0:00:05]} Nc6 {[%emt 0:00:08]} 3. Bb5 {[%emt 0:00:05]} e6 {[%emt 0:00:17]} 4. O-O {[%emt 0:00:04]} Nge7 {[%emt 0:00:06]} 5. Re1 {[%emt 0:00:09]} a6 {[%emt 0:09:11]} 6. Bf1 {[%emt 0:00:06]} d5 {[%emt 0:00:46]} 7. exd5 {[%emt 0:00:05]} Nxd5 {[%emt 0:03:21]} 8. d4 {[%emt 0:00:04]} Nf6 {[%emt 0:01:34]} 9. Be3 {[%emt 0:00:10]} Be7 {[%emt 0:03:11] B30: Sicilian: 2...Nc6 3 Bb5, lines without ...g6.} 10. c4 {[%emt 0:00:04]} O-O {[%emt 0:01:08]} 11. Nc3 {[%emt 0:00:05]} cxd4 {[%emt 0:01:35]} 12. Nxd4 {[%emt 0:00:05]} Ne5 $1 {[%emt 0:00:17][%mdl 4] is recently more successful than 12...Bd7.} 13. h3 {[%emt 0:03:55] Prevents Neg4.} Bd7 {[%emt 0:03:21]} 14. Rc1 {[%emt 0:22:03][%cal Oc4c5]} Rc8 {[%emt 0:15:44] The position is equal.} 15. Qb3 {[%emt 0:01:34]} Qc7 {[%emt 0:08:21]} 16. Na4 {[%emt 0:04:30] [#]} Bd8 $5 $146 {[%emt 0:07:01][%mdl 8] An interesting novelty.} ({Predecessor:} 16... Rcd8 17. Qb6 Qxb6 18. Nxb6 Be8 19. a3 Ned7 20. Nb3 Nxb6 21. Bxb6 Rc8 22. Be3 Rb8 {½-½ (40) Anand,V (2786)-Gelfand,B (2755) Moscow 2013 CBM 155 [Szabo,Kr]}) 17. Qd1 {[%emt 0:21:37]} Qa5 {[%emt 0:11:50][%mdl 32768] A rather calm draw.  Weighted Error Value: White=0.09 (flawless) /Black=0.05 (flawless) . Loss on time!?} 0-1

[Event "5th Sharjah Masters 2022"]
[Site "Sharjah"]
[Date "2022.05.21"]
[Round "1.7"]
[White "Narayanan.S.L"]
[Black "Moroni, Luca Jr"]
[Result "1/2-1/2"]
[ECO "D30"]
[WhiteElo "2662"]
[BlackElo "2581"]
[Annotator "TA"]
[PlyCount "54"]
[EventDate "2022.05.21"]
[EventType "swiss"]
[EventCountry "UAE"]
[SourceTitle "playchess.com"]
[Source "ChessBase"]
[SourceQuality "1"]
[TimeControl "5400+30"]

{[%evp 9,54,24,22,28,17,12,25,13,32,42,27,5,14,18,16,21,25,13,8,0,7,0,0,-21,-13,-37,8,0,0,15,2,4,0,0,0,0,0,0,0,0,0,0,0,0,6,0,0]} 1. d4 {[%emt 0:00:04]} d5 {[%emt 0:00:04]} 2. c4 {[%emt 0:00:23]} e6 {[%emt 0:00:05]} 3. Nf3 {[%emt 0:00:12]} a6 {[%emt 0:00:03]} 4. Bg5 {[%emt 0:00:46]} Be7 {[%emt 0:00:07]} 5. Bxe7 {[%emt 0:00:06]} Qxe7 {[%emt 0:00:04]} 6. Nbd2 {[%emt 0:00:44] D30: Queen's Gambit Declined: Systems without Nc3.} Nf6 {[%emt 0:00:29]} 7. g3 {[%emt 0:00:27]} O-O {[%emt 0:05:41]} 8. Bg2 {[%emt 0:00:08] White has an edge.} Nbd7 {[%emt 0:09:37]} 9. O-O {[%emt 0:05:42]} b6 {[%emt 0:01:52]} 10. cxd5 {[%emt 0:04:03]} exd5 {[%emt 0:00:05]} 11. Rc1 {[%emt 0:11:58]} c5 {[%emt 0:01:16]} 12. Re1 {[%emt 0:00:59][%cal Oe2e4]} Bb7 {[%emt 0:02:13]} 13. dxc5 {[%emt 0:00:23]} bxc5 {[%emt 0:01:57] [#]} 14. Qb3 $146 {[%emt 0:00:56]} ({Predecessor:} 14. Qc2 Rfe8 15. Qf5 a5 16. Ng5 h6 17. Nh3 Nb6 18. Qc2 Rac8 19. Qb3 Qd6 20. Qa3 a4 21. Nf4 {½-½ (21) Vypkhaniuk,I (2413)-Richter,N (2270) Reinstorf 2022}) 14... Rfb8 {[%emt 0:12:11]} 15. Qc2 {[%emt 0:21:44]} a5 {[%emt 0:07:10]} 16. Nh4 {[%emt 0:01:25]} Qe6 {[%emt 0:06:10]} 17. a3 {[%emt 0:17:45]} Qb6 {[%emt 0:08:54]} 18. e4 {[%emt 0:01:49] The position is equal.} Nxe4 {[%emt 0:04:14]} 19. Nxe4 {[%emt 0:00:11]} dxe4 {[%emt 0:00:05]} 20. Bxe4 {[%emt 0:00:12]} Bxe4 {[%emt 0:02:16]} 21. Rxe4 {[%emt 0:00:08]} Nf8 {[%emt 0:06:26]} 22. Qxc5 {[%emt 0:18:31]} Qxb2 {[%emt 0:01:49][%cal Ob8c8] [#] ...Rc8! is the strong threat.} 23. Re7 {[%emt 0:03:01]} Ne6 {[%emt 0:08:32]} 24. Qc3 {[%emt 0:01:05]} Qxc3 {[%emt 0:04:49]} 25. Rxc3 {[%emt 0:00:05]} Kf8 {[%emt 0:00:23]} 26. Rd7 {[%emt 0:00:30]} Ke8 {[%emt 0:01:22]} 27. Rdd3 {[%emt 0:03:14]} g6 {[%emt 0:03:00] Weighted Error Value: White=0.04 (flawless) /Black=0.05 (flawless)} 1/2-1/2

[Event "5th Sharjah Masters 2022"]
[Site "Sharjah"]
[Date "2022.05.21"]
[Round "1.8"]
[White "Kadric, Denis"]
[Black "Abdusattorov, Nodirbek"]
[Result "1/2-1/2"]
[ECO "B35"]
[WhiteElo "2576"]
[BlackElo "2661"]
[Annotator "TA"]
[PlyCount "76"]
[EventDate "2022.05.21"]
[EventType "swiss"]
[EventCountry "UAE"]
[SourceTitle "playchess.com"]
[Source "ChessBase"]
[SourceQuality "1"]
[TimeControl "5400+30"]

{[%evp 14,76,16,0,20,0,27,0,0,0,0,0,0,0,14,0,0,0,0,0,0,0,0,0,0,0,0,0,0,0,0,0,12,14,14,0,9,5,16,10,67,25,20,13,38,39,36,43,49,33,42,37,28,9,18,5,72,57,64,60,50,50,41,50,37]} 1. e4 {[%emt 0:00:03]} c5 {[%emt 0:00:14]} 2. Nc3 {[%emt 0:00:05]} Nc6 {[%emt 0:00:21]} 3. Nge2 {[%emt 0:00:06]} g6 {[%emt 0:00:29]} 4. d4 {[%emt 0:00:05]} cxd4 {[%emt 0:00:20]} 5. Nxd4 {[%emt 0:00:03]} Bg7 {[%emt 0:00:10]} 6. Be3 {[%emt 0:00:05]} Nf6 {[%emt 0:00:33]} 7. Bc4 {[%emt 0:00:03]} O-O {[%emt 0:00:39]} 8. Bb3 {[%emt 0:00:02]} Re8 {[%emt 0:00:15] B35: Sicilian: Accelerated Dragon with 5 Nc3: main line.} 9. f3 {[%emt 0:00:59]} e6 {[%emt 0:01:01][%cal Be7e6,Be6e5][%mdl 32]} 10. Qd2 {[%emt 0:00:20]} (10. f4 {seems wilder.} Ng4 11. Bg1 Bxd4 12. Bxd4 d5 13. Qxg4 Nxd4 14. O-O-O) 10... d5 {[%emt 0:00:24][%cal Bd7d5,Bd5d4][%mdl 32] The position is equal.} 11. O-O-O {[%emt 0:00:08]} Nxd4 $1 {[%emt 0:00:06]} 12. Bxd4 {[%emt 0:00:03]} e5 {[%emt 0:00:04]} 13. Bf2 {[%emt 0:00:03][%cal Re4d5]} d4 {[%emt 0:00:03]} 14. Ne2 {[%emt 0:00:03]} a5 {[%emt 0:00:03]} 15. c3 {[%emt 0:01:29][%cal Rc3d4]} Qc7 {[%emt 0:00:20]} 16. Kb1 {[%emt 0:01:34]} a4 {[%emt 0:00:06]} 17. Bc2 {[%emt 0:00:06]} dxc3 $1 {[%emt 0:00:02]} 18. Nxc3 {[%emt 0:05:32]} Be6 {[%emt 0:00:06]} 19. Qd6 {[%emt 0:13:52]} Qc8 {[%emt 0:00:05][%cal Oa4a3] [#]} 20. Qc5 $146 {[%emt 0:09:26]} ({Predecessor:} 20. Bxa4 Bxa2+ 21. Kxa2 b5 22. Rc1 Ra6 23. Qb4 Qe6+ 24. Qb3 Qxb3+ 25. Kxb3 bxa4+ 26. Ka2 Bh6 27. Rc2 Rc8 28. Bg3 a3 29. b4 {½-½ (29) Talpak,T (2468)-Williamson,H (2537) ICCF email 2016}) 20... Bf8 {[%emt 0:00:05]} 21. Qxc8 {[%emt 0:00:48]} Rexc8 {[%emt 0:00:05]} 22. Bh4 {[%emt 0:14:16]} Nh5 {[%emt 0:05:55][%cal Bf6h5,Bh5f4,Bf4d5,Bd5b4][%mdl 32]} 23. Nd5 {[%emt 0:05:28] [#] Black must now prevent Nb6.} Bc5 {[%emt 0:06:08] Prevents Nb6.} 24. g4 {[%emt 0:11:20]} Nf4 {[%emt 0:00:21]} 25. Bf6 {[%emt 0:00:56]} Bxd5 {[%emt 0:01:44]} 26. exd5 {[%emt 0:00:28] aiming for d6.} Bd4 {[%emt 0:07:19]} (26... Bd6 $11) 27. Rhe1 {[%emt 0:03:34][%cal Bh1e1,Be1e5,Be5b5][%mdl 32] Hoping for d6.} Nxd5 {[%emt 0:17:53]} 28. Bxe5 {[%emt 0:00:02]} Bxe5 {[%emt 0:00:13]} 29. Rxe5 {[%emt 0:00:32]} Nb4 {[%emt 0:00:05]} 30. Be4 {[%emt 0:02:02]} Rd8 $1 {[%emt 0:00:16][%cal Rd8d1]} 31. Rf1 {[%emt 0:09:41]} Nc6 {[%emt 0:29:54]} 32. Rb5 {[%emt 0:00:11]} Ra7 $1 {[%emt 0:00:50]} 33. Rc1 {[%emt 0:04:53]} Rd2 {[%emt 0:01:50]} 34. h4 {[%emt 0:04:11]} Rh2 {[%emt 0:00:06] [#]} (34... Kg7 $11) 35. h5 $1 $16 {[%emt 0:01:21]} ({Much worse is} 35. Bxc6 $6 bxc6 36. Rxc6 Rxh4 $11) 35... Kg7 {[%emt 0:00:45] White is slightly better.} 36. hxg6 {[%emt 0:01:20]} ({Don't play} 36. Bxc6 bxc6 37. Rxc6 Rf2 $11) 36... hxg6 {[%emt 0:00:17]} 37. Rd1 {[%emt 0:00:06] Inhibits Nd4.} a3 {[%emt 0:04:06]} 38. bxa3 {[%emt 0:00:04]} Rxa3 {[%emt 0:00:05] Weighted Error Value: White=0.04 (flawless) /Black=0.09 (flawless)} 1/2-1/2

[Event "5th Sharjah Masters 2022"]
[Site "Sharjah"]
[Date "2022.05.21"]
[Round "1.9"]
[White "Gukesh D"]
[Black "Sanal, Vahap"]
[Result "1-0"]
[ECO "D61"]
[WhiteElo "2659"]
[BlackElo "2575"]
[Annotator "TA"]
[PlyCount "127"]
[EventDate "2022.05.21"]
[EventType "swiss"]
[EventCountry "UAE"]
[SourceTitle "playchess.com"]
[Source "ChessBase"]
[SourceQuality "1"]
[TimeControl "5400+30"]

{[%evp 18,127,29,5,45,0,0,0,0,0,0,-28,-14,-18,-12,-23,-27,-32,0,0,0,0,0,0,0,0,0,0,0,0,-9,-11,-3,-7,0,-16,0,-13,-20,-39,-6,-18,0,-50,0,0,0,0,0,0,0,0,0,0,0,0,18,0,12,0,131,120,198,0,0,0,0,0,150,181,266,222,381,374,383,358,328,266,968,962,885,409,420,418,387,343,324,310,300,0,306,170,276,96,209,185,191,170,329,316,2561,1461,2169,2019,29977,12838,29986,29987,29989,29990,29990,29991]} 1. d4 {[%emt 0:00:45]} d5 {[%emt 0:00:13]} 2. c4 {[%emt 0:01:35]} c6 {[%emt 0:00:10]} 3. Nf3 {[%emt 0:00:30]} Nf6 {[%emt 0:00:08]} 4. Nc3 {[%emt 0:01:41]} e6 {[%emt 0:00:11]} 5. Bg5 {[%emt 0:03:09]} Be7 {[%emt 0:00:18]} 6. e3 {[%emt 0:00:08]} h6 {[%emt 0:00:13]} 7. Bh4 {[%emt 0:00:03]} O-O {[%emt 0:01:09]} 8. Qc2 {[%emt 0:00:06]} Nbd7 {[%emt 0:00:11]} 9. a3 {[%emt 0:00:06]} a6 {[%emt 0:02:36]} 10. Rd1 {[%emt 0:04:32]} b5 {[%emt 0:15:12] D61: Queen's Gambit Declined: Classical: 7 Qc2.} 11. cxd5 {[%emt 0:04:16]} cxd5 {[%emt 0:00:53]} 12. Bd3 {[%emt 0:02:07]} Bb7 {[%emt 0:00:57] The position is equal.} 13. O-O $1 {[%emt 0:01:03]} Rc8 {[%emt 0:03:34]} 14. Rc1 {[%emt 0:13:31] [#]} g5 $146 {[%emt 0:09:35]} ({Predecessor:} 14... Ne8 15. Bxe7 Qxe7 16. Qb3 Nb6 17. Qb4 Rc7 18. Ne2 Nc4 19. b3 Nxa3 20. Rc5 Nc4 21. bxc4 dxc4 {1-0 (34) Livaic,L (2507)-Paradzik,B (2185) Tornelo INT 2020}) 15. Bg3 {[%emt 0:00:07]} Ne4 {[%emt 0:00:15]} 16. Qb3 {[%emt 0:08:27]} Nxg3 {[%emt 0:01:43]} 17. hxg3 {[%emt 0:00:40]} f5 {[%emt 0:00:34]} 18. Ne2 {[%emt 0:06:03]} Bd6 {[%emt 0:02:47]} 19. Rxc8 {[%emt 0:03:17]} Qxc8 {[%emt 0:02:04]} 20. a4 {[%emt 0:02:17]} b4 {[%emt 0:01:50]} 21. a5 {[%emt 0:00:05]} Qc7 {[%emt 0:08:23]} 22. Qa4 {[%emt 0:01:05]} Bc6 {[%emt 0:00:51]} 23. Qa2 {[%emt 0:00:31]} Qb7 {[%emt 0:01:10]} 24. Qb3 {[%emt 0:04:57]} Rc8 {[%emt 0:10:53]} 25. Rc1 {[%emt 0:02:12]} Kg7 {[%emt 0:02:00]} 26. Qd1 {[%emt 0:02:51]} Rc7 {[%emt 0:01:53]} 27. Ra1 {[%emt 0:07:10]} Bb5 {[%emt 0:02:21]} 28. Nc1 {[%emt 0:00:06]} g4 {[%emt 0:01:28]} 29. Ne1 {[%emt 0:01:41]} Bc4 {[%emt 0:02:53]} 30. Ne2 {[%emt 0:03:40]} (30. b3 $11) 30... Kf7 {[%emt 0:05:43]} ({Black should play} 30... b3 $1 $15) 31. b3 $11 {[%emt 0:04:06]} Bb5 {[%emt 0:00:38]} 32. Bxb5 {[%emt 0:01:25]} Qxb5 {[%emt 0:00:05]} 33. Nd3 {[%emt 0:00:07]} Ke7 {[%emt 0:01:43]} 34. Qd2 {[%emt 0:00:57]} Nf6 {[%emt 0:02:26]} 35. f3 $1 {[%emt 0:00:51] Against Ne4} h5 {[%emt 0:01:40]} 36. Kf2 {[%emt 0:00:53]} Rc8 {[%emt 0:02:46]} 37. Ra4 {[%emt 0:01:28]} Rb8 {[%emt 0:02:05]} 38. Nef4 {[%emt 0:00:35][%cal Be2f4,Bf4g6,Bg6e5][%mdl 32]} Qc6 {[%emt 0:02:57]} (38... Rb7 $11 {keeps the balance.}) 39. Ra1 $16 {[%emt 0:03:12]} (39. Nxb4 $6 Qc8 $11) 39... Qb5 {[%emt 0:05:29]} (39... Qb7 $16) 40. Nc5 $2 {[%emt 0:02:28]} (40. Qc2 $18) 40... Bxc5 $11 {[%emt 0:00:53]} 41. dxc5 {[%emt 0:00:09][%cal Bd4c5,Bc5c6][%mdl 32]} Rc8 $1 {[%emt 0:07:17]} (41... Qxc5 42. Rc1 Qxa5 43. Ng6+ (43. Rc6 Rb6 $16) 43... Kf7 44. Ne5+ Kf8 45. Rc6 (45. Nc6 Qc7 $16) 45... gxf3 46. gxf3 $18) 42. Ng6+ {[%emt 0:00:23]} Kf7 {[%emt 0:00:12]} (42... Kd8 $11) 43. Ne5+ $16 {[%emt 0:00:06]} Ke7 {[%emt 0:00:09]} (43... Kg8 $142) 44. c6 $18 {[%emt 0:01:31]} Qc5 {[%emt 0:00:05]} (44... Rxc6 {was worth a try.} 45. Nxc6+ Qxc6 46. Qxb4+ Kf7) 45. Rc1 $1 {[%emt 0:02:45]} Qxa5 {[%emt 0:00:02]} 46. Qd4 {[%emt 0:00:44] Inhibits Qb6. Dancing on a razor blade.} Rc7 {[%emt 0:00:39]} 47. Rc2 {[%emt 0:01:46] Threatens to win with Qf4.} Ne8 $2 {[%emt 0:02:12]} (47... Rc8 48. Qf4 Qc7 49. Qxb4+ Ke8) 48. Qf4 {[%emt 0:01:23] Black must now prevent Qg5+.} Qa1 {[%emt 0:00:32]} 49. Qg5+ {[%emt 0:03:54]} (49. Qxb4+ $142 Kd8 50. Nf7+ $1 {[%mdl 512]} Rxf7 51. Qb8+ Ke7 52. c7 Nxc7 53. Rxc7+ Kf6 54. Qh8+ Kg6 55. Qxa1 Rxc7 56. Qxa6 Rc2+ 57. Kf1 Rc1+ 58. Ke2) 49... Kf8 {[%emt 0:00:02]} 50. Nd7+ {[%emt 0:02:16]} Kf7 {[%emt 0:00:01]} 51. Qxh5+ {[%emt 0:00:09]} Ke7 {[%emt 0:00:06]} 52. Qg5+ {[%emt 0:00:05]} (52. fxg4 Qd1 53. Qg5+ Kd6 54. Qf4+ Ke7 55. Qg5+ (55. Qxb4+ Nd6 $17) 55... Kd6 56. Qf4+ Ke7 $14) 52... Kf7 {[%emt 0:00:29]} 53. Qh5+ {[%emt 0:00:40]} (53. fxg4 Nf6 54. Nxf6 Qxf6 55. Qh5+ Qg6 $16) 53... Ke7 {[%emt 0:00:02]} 54. Qh6 {[%emt 0:02:35]} (54. fxg4 Qd1 55. Qg5+ Kd6 56. Qf4+ Ke7 57. Qg5+ (57. Qxb4+ Nd6 $15) 57... Kd6 58. Qf4+ Ke7 $14) (54. Qg5+ Kf7 55. Qh6 (55. fxg4 Nf6 $16) 55... Qg7 $18) (54. Qh4+ $142 Nf6 55. Qg5 (55. Qh8 $2 Ne4+ 56. fxe4 Qxh8 $19)) 54... Qg7 {[%emt 0:01:00]} (54... Qd1 $142 55. Qg5+ Kd6 56. Qf4+ Ke7 57. Qxb4+ (57. Qg5+ Kd6 $16) 57... Kd8) 55. Qf4 $2 {[%emt 0:00:28]} (55. Qh4+ $18 Nf6 56. fxg4) 55... a5 {[%emt 0:00:06] [#]} (55... Rxc6 $16 {was necessary.} 56. Rxc6 Qb2+ 57. Ke1 (57. Kg1 Qa1+ 58. Kf2 Qa2+ 59. Kg1 Qa1+ 60. Kf2 Qa2+ 61. Kg1 Qa1+ $11) 57... Qa1+ 58. Kd2 Kxd7) 56. Ne5 $1 {[%emt 0:00:30]} gxf3 {[%emt 0:02:13]} 57. gxf3 {[%emt 0:00:06] Hoping for Kg2.} Kd8 $2 {[%emt 0:00:30]} (57... Kd6 {keeps fighting.} 58. Nd3+ (58. Qd4 Qh6 $16) 58... Ke7) 58. Rc5 {[%emt 0:02:02]} Qh8 $2 {[%emt 0:00:25]} (58... Ra7 59. Nd3 Rc7) 59. Rxa5 {[%emt 0:00:58]} Qh2+ {[%emt 0:00:14]} 60. Kf1 {[%emt 0:00:14][%cal Bf2f1,Bf1e2,Be2d3][%mdl 32]} Qh1+ {[%emt 0:00:03]} 61. Ke2 {[%emt 0:00:16] Intending Qg5+ and mate.} Qg2+ {[%emt 0:00:01]} 62. Kd3 {[%emt 0:00:18] White mates.} Ke7 {[%emt 0:01:30]} 63. Qxb4+ {[%emt 0:00:08]} Nd6 {[%emt 0:00:18]} 64. Qh4+ {[%emt 0:00:06] Weighted Error Value: White=0.30/Black=0.50} 1-0